bitfinex/quotes_ETHUSD_20260129
["timestamp","ask_amount","ask_price","bid_price","bid_amount"]
[1769702497857,2.20032653,2820.4,2818.8,0.88690222]
[1769702498047,14.02449929,2820.4,2818.8,0.88690222]
[1769702498250,14.06005674,2820.4,2818.8,0.88690222]
[1769702499758,14.02449929,2820.4,2818.8,0.88690222]
[1769702500103,14.02449913,2820.4,2818.9,0.2335703]
[1769702500449,14.06005658,2820.4,2818.8,0.88690222]
[1769702500660,13.13808084,2819.9,2818.9,0.481621]
[1769702501364,14.76749913,2820.4,2818.9,0.481621]
[1769702501668,14.02449913,2820.4,2819.0,0.8868393]
[1769702502958,13.13808084,2819.8,2818.7,0.38169884]
[1769702503159,13.13808084,2819.6,2818.0,0.002]
[1769702503667,13.13808084,2819.6,2818.4,0.88701019]
[1769702503994,14.02476287,2819.5,2818.4,0.88702498]
[1769702504169,14.02476287,2819.5,2818.5,0.44372394]
[1769702504559,14.02476287,2819.5,2818.3,0.002]
[1769702504963,13.13808084,2819.4,2818.0,0.002]
[1769702505171,13.13808084,2819.2,2817.6,0.88725345]
[1769702505396,13.13808084,2819.0,2817.4,2.87074411]
[1769702505597,13.13808084,2819.0,2817.4,1.98343201]
[1769702505782,13.13808084,2818.6,2817.5,0.88730648]
[1769702506612,3.54640339,2819.8,2817.7,0.03555745]
[1769702506613,14.76769998,2819.7,2817.7,0.03555745]
[1769702506935,14.02469998,2819.7,2817.9,0.03555745]
[1769702507066,13.13808084,2819.7,2818.7,0.002]
[1769702507997,13.13808084,2820.1,2818.7,0.002]
[1769702508161,1.66840149,2820.0,2818.7,0.002]
[1769702508361,14.80648233,2820.0,2818.7,0.002]
[1769702509004,0.88640575,2820.4,2818.8,0.03555745]
[1769702509164,0.88640575,2820.4,2818.7,0.03755745]
[1769702509165,14.02448659,2820.4,2818.7,0.03755745]
[1769702509671,14.02448659,2820.4,2818.9,0.03555745]
[1769702509872,14.02448659,2820.4,2818.7,0.88893369]
[1769702510192,13.13808084,2820.2,2818.8,0.44366685]
[1769702510565,1.75699706,2820.3,2818.8,0.44366685]
[1769702510566,13.13808084,2820.0,2818.8,0.44366685]
[1769702510889,13.13808084,2820.0,2818.7,0.002]
[1769702511957,0.88655626,2819.9,2818.7,0.002]
[1769702512164,0.03555745,2820.7,2818.7,0.002]
[1769702512165,13.13808084,2820.5,2818.7,0.002]
[1769702512363,1.66845515,2820.4,2818.7,0.41965629]
[1769702513192,14.0244485,2820.5,2818.9,0.03555745]
[1769702513594,14.0244485,2820.5,2818.7,0.41965629]
[1769702514295,14.0244485,2820.5,2818.8,0.88690222]
[1769702515662,13.00183725,2820.3,2818.7,0.002]
[1769702515894,13.00183725,2820.3,2818.7,0.88893012]
[1769702516197,13.00183725,2820.1,2818.8,0.44366926]
[1769702516503,13.00183725,2819.9,2818.8,1.33056337]
[1769702517401,4.85650006,2820.2,2818.8,1.36612082]
[1769702517402,2.1969067,2820.2,2818.8,1.36612082]
[1769702517599,0.88648298,2820.2,2818.8,1.36612082]
[1769702518378,3.54584781,2820.3,2818.8,1.33056337]
[1769702519308,13.00283725,2820.1,2818.8,0.44366926]
[1769702519613,13.00183725,2819.9,2818.8,0.8868935]
[1769702519815,13.00183725,2819.9,2818.8,0.8868965]
[1769702519978,13.00183725,2819.9,2818.7,0.88891655]
[1769702520380,0.8865877,2819.8,2818.7,0.002]
[1769702520688,16.06081766,2819.8,2818.7,0.002]
[1769702521894,16.06081766,2819.8,2818.5,0.002]
[1769702522271,13.74483725,2819.7,2818.5,0.002]
[1769702522477,13.88848783,2819.6,2818.5,0.002]
[1769702522713,13.00183725,2819.6,2818.5,0.002]
[1769702523007,1.62957799,2819.9,2818.6,0.03555745]
[1769702523174,0.88657799,2819.9,2818.5,0.002]
[1769702523379,13.00183725,2819.8,2818.5,0.002]
[1769702523777,1.68457154,2819.9,2818.5,0.002]
[1769702524117,0.88653442,2820.0,2818.6,0.03555745]
[1769702524409,0.001,2820.1,2818.5,0.002]
[1769702524615,0.001,2820.1,2818.5,0.03755745]
[1769702525034,0.001,2820.1,2819.0,0.03555745]
[1769702525191,0.001,2820.1,2818.8,0.743]
[1769702525574,13.00283725,2820.1,2818.8,0.743]
[1769702525803,14.39176429,2820.1,2818.8,0.743]
[1769702526325,14.57552498,2820.1,2818.5,0.002]
[1769702526479,13.88836207,2820.0,2818.5,0.002]
[1769702526678,13.00183725,2820.0,2818.6,0.03555745]
[1769702526983,13.00183725,2820.0,2818.5,0.002]
[1769702527190,14.74536401,2820.0,2818.5,0.002]
[1769702528412,0.88655626,2819.9,2818.5,0.002]
[1769702528718,13.74483725,2819.8,2818.5,0.002]
[1769702528935,13.00183725,2819.6,2817.9,0.88717068]
[1769702529729,13.00183725,2819.4,2817.9,0.88717068]
[1769702529926,14.30202097,2819.3,2818.0,0.51790345]
[1769702530223,13.00183725,2819.3,2818.0,0.51790345]
[1769702530596,13.88861364,2819.2,2818.0,0.51790345]
[1769702530781,13.00183725,2819.0,2817.6,0.88727395]
[1769702530983,13.00183725,2819.0,2817.7,0.88724075]
[1769702531308,13.00183725,2819.0,2818.5,0.002]
[1769702532225,13.88845639,2819.7,2818.5,0.002]
[1769702532426,14.5792672,2819.7,2818.5,0.002]
[1769702532725,0.001,2819.8,2818.5,0.002]
[1769702532890,0.001,2819.8,2818.6,0.03555745]
[1769702533327,0.001,2819.8,2818.5,0.03755745]
[1769702533525,0.001,2819.8,2818.6,0.03555745]
[1769702533702,0.88760488,2819.8,2818.5,0.002]
[1769702533905,13.44522318,2819.7,2818.5,0.002]
[1769702534701,13.00183725,2819.5,2818.5,0.002]
[1769702535331,13.00183725,2819.5,2817.4,1.98343201]
[1769702535554,13.00183725,2819.3,2817.4,1.98343201]
[1769702535704,13.00183725,2819.3,2817.4,2.87075835]
[1769702536058,0.1024,2819.4,2817.5,1.17458489]
[1769702536059,13.00183725,2819.1,2817.5,1.17458489]
[1769702536409,13.00183725,2819.1,2817.5,1.21014234]
[1769702536643,13.00183725,2818.9,2817.5,1.17458489]
[1769702537199,0.8868393,2819.0,2817.5,1.17458489]
[1769702537425,0.88681254,2819.1,2817.6,0.03555745]
[1769702537624,13.88857431,2819.4,2817.8,0.03555745]
[1769702537833,15.70640707,2819.4,2817.6,0.03555745]
[1769702538235,15.70640707,2819.4,2817.6,14.53555745]
[1769702538422,15.70640707,2819.4,2817.6,14.5]
[1769702538817,15.70640707,2819.4,2817.7,0.88724846]
[1769702539205,15.70640707,2819.4,2817.5,0.28727583]
[1769702539407,13.00183725,2819.2,2817.6,1.11434934]
[1769702540507,13.00183725,2819.2,2817.6,0.22707078]
[1769702540713,13.00183725,2819.2,2817.6,1.11434668]
[1769702540950,13.00183725,2819.0,2817.6,1.11434668]
[1769702541163,0.743,2818.9,2817.6,1.11434668]
[1769702541458,0.88680784,2819.1,2817.7,0.50191477]
[1769702541626,13.88864509,2819.1,2817.7,0.46635732]
[1769702542341,13.88864509,2819.1,2817.6,1.11433811]
[1769702542508,13.88864509,2819.1,2817.8,0.002]
[1769702543630,0.21934437,2820.2,2817.8,0.002]
[1769702543631,13.88851928,2819.5,2817.8,0.002]
[1769702546126,13.32907168,2819.1,2817.8,0.002]
[1769702546321,13.32907168,2818.9,2817.8,0.002]
[1769702546528,14.73627885,2818.9,2817.8,0.002]
[1769702547126,0.88690222,2818.8,2817.8,0.002]
[1769702548455,14.2159739,2818.8,2817.8,0.002]
[1769702548661,14.2159739,2818.8,2817.9,3.81]
[1769702549454,14.2159739,2818.8,2817.5,0.002]
[1769702549667,13.32907168,2818.6,2817.5,0.002]
[1769702549841,13.32907168,2818.4,2817.5,0.002]
[1769702550041,0.743,2818.3,2817.5,0.002]
[1769702550234,0.88690222,2818.8,2817.6,3.54909649]
[1769702550433,14.2159739,2818.8,2817.7,0.88724219]
[1769702550664,14.2159739,2818.8,2817.5,0.002]
[1769702550869,13.32907168,2818.6,2817.5,0.002]
[1769702551034,13.32907168,2818.4,2817.5,0.002]
[1769702551370,14.21613125,2818.3,2817.5,0.002]
[1769702551864,0.88705957,2818.3,2817.5,0.002]
[1769702552362,0.743,2818.5,2817.5,0.002]
[1769702552545,0.88695624,2818.7,2817.5,0.002]
[1769702552867,14.21599448,2818.8,2817.5,0.002]
[1769702553072,16.06664699,2818.8,2817.5,0.002]
[1769702555243,16.06664699,2818.8,2817.7,0.002]
[1769702555634,13.96080972,2818.4,2817.3,0.002]
[1769702555865,13.96080972,2818.1,2816.5,0.88962648]
[1769702556037,0.743,2818.3,2816.5,0.88962648]
[1769702556038,15.35689069,2818.0,2816.5,0.88962648]
[1769702557571,15.35689069,2818.0,2816.5,0.002]
[1769702557773,0.88718549,2817.9,2816.5,0.002]
[1769702558080,0.88718549,2817.9,2816.5,0.03755745]
[1769702558276,0.88718549,2817.9,2816.5,0.002]
[1769702559278,0.8870281,2818.4,2817.0,0.03555745]
[1769702559646,3.54778253,2818.7,2817.1,0.88743743]
[1769702559850,13.96080972,2818.6,2817.1,0.88743743]
[1769702560077,15.71166895,2818.5,2817.2,0.44371872]
[1769702560450,15.71166895,2818.5,2817.1,0.88743743]
[1769702560851,0.743,2818.4,2816.9,0.002]
[1769702561061,13.96080972,2818.3,2816.9,0.002]
[1769702561474,13.96080972,2818.1,2816.9,0.002]
[1769702561786,13.96080972,2817.9,2816.9,0.002]
[1769702561987,15.8004677,2817.9,2816.9,0.002]
[1769702563884,0.88721697,2817.8,2816.9,0.002]
[1769702564678,0.88705957,2818.3,2816.9,0.002]
[1769702565190,0.88691638,2818.8,2817.2,0.03555745]
[1769702565388,0.88691638,2818.8,2817.2,0.76514831]
[1769702565590,0.88691638,2818.8,2817.3,0.03555745]
[1769702565888,0.001,2818.9,2817.4,0.88734294]
[1769702566195,0.001,2818.9,2817.7,0.03555745]
[1769702566596,13.96180972,2818.9,2817.4,0.88734294]
[1769702566893,15.35699069,2818.8,2817.4,1.40752924]
[1769702567076,15.35699069,2818.8,2817.4,0.5201863]
[1769702567287,0.001,2817.8,2817.3,0.88734812]
[1769702567992,0.001,2817.8,2817.2,0.88740593]
[1769702569007,0.88693369,2818.7,2817.2,0.88740593]
[1769702571296,14.84870248,2818.9,2817.5,0.03555745]
[1769702571473,14.84870248,2818.9,2817.3,0.03555745]
[1769702571667,16.68831054,2818.9,2817.2,0.88740593]
[1769702571902,1.84060806,2818.9,2817.3,0.03555745]
[1769702572102,0.001,2818.9,2817.5,0.03555745]
[1769702572514,0.88787971,2818.9,2817.4,0.2335703]
[1769702572814,0.18353214,2819.2,2817.9,0.03555745]
[1769702572976,0.18353214,2819.2,2817.9,0.80060576]
[1769702573172,0.88668261,2819.5,2817.9,0.80060576]
[1769702573377,0.88666015,2819.6,2818.1,0.03555745]
[1769702573597,14.84738234,2819.9,2818.3,0.03555745]
[1769702573773,0.88653314,2820.0,2818.5,0.03555745]
[1769702573982,0.001,2820.1,2818.7,0.03555745]
[1769702574512,0.001,2820.1,2818.6,0.4271132]
[1769702574704,0.001,2820.1,2818.7,0.88693369]
[1769702574877,0.001,2820.1,2818.8,0.03555745]
[1769702575277,0.001,2820.1,2818.8,0.26912775]
[1769702575506,0.001,2820.1,2818.8,0.2335703]
[1769702575705,0.001,2820.1,2818.7,0.88693369]
[1769702575919,0.001,2820.1,2818.8,0.44346685]
[1769702576476,13.84632096,2820.1,2818.8,0.44346685]
[1769702576678,13.84532096,2819.9,2818.9,0.88687076]
[1769702577315,13.84532096,2819.9,2818.8,1.33035057]
[1769702577884,13.84532096,2819.9,2818.8,0.88688372]
[1769702578084,0.88652482,2820.0,2818.8,0.88688372]
[1769702578501,0.88751684,2820.1,2818.8,0.88688372]
[1769702578702,0.001,2820.1,2818.5,3.54760891]
[1769702579011,0.001,2820.1,2818.6,0.2335703]
[1769702579198,0.001,2820.1,2818.8,0.2335703]
[1769702579522,0.001,2819.9,2818.8,0.2335703]
[1769702579735,0.001,2820.1,2819.1,0.03555745]
[1769702579906,0.001,2820.6,2818.8,7.84649595]
[1769702579907,0.001,2820.6,2819.2,0.743]
[1769702580092,13.84632096,2820.6,2819.2,0.743]
[1769702580634,0.001,2820.6,2819.3,0.2335703]
[1769702580833,0.001,2820.6,2819.4,0.88671348]
[1769702581006,0.001,2820.6,2819.5,0.46671377]
[1769702581392,13.84632096,2820.6,2819.5,0.46671377]
[1769702581596,13.84632096,2820.6,2819.4,0.88671348]
[1769702582123,13.84632096,2820.6,2819.3,0.88673179]
[1769702582835,13.84532096,2820.4,2818.8,0.88690222]
[1769702583201,0.001,2820.6,2818.9,0.26912775]
[1769702583401,0.18512233,2821.2,2819.3,0.26912775]
[1769702583602,0.03555745,2822.6,2819.1,0.03555745]
[1769702583603,13.84532096,2821.9,2820.0,0.2335703]
[1769702583802,0.03555745,2822.2,2820.2,0.2335703]
[1769702584003,0.03555745,2822.2,2820.2,7.8089385]
[1769702584202,14.76665647,2822.4,2820.2,7.8089385]
[1769702584427,13.84532096,2821.7,2820.1,0.743]
[1769702584638,1.3845321,2821.6,2820.1,0.743]
[1769702584847,13.84532096,2821.4,2820.1,0.88648506]
[1769702585065,13.84532096,2821.2,2820.1,0.88648714]
[1769702585614,13.84532096,2821.2,2819.6,0.743]
[1769702585854,13.84532096,2821.0,2819.7,0.88660114]
[1769702586018,0.03555745,2821.1,2819.7,3.54646467]
[1769702586019,13.84532096,2820.8,2819.7,3.54646467]
[1769702586351,13.84532096,2821.3,2820.1,0.88648934]
[1769702586819,13.84532096,2821.1,2819.7,0.88661914]
[1769702587020,13.84532096,2821.1,2819.6,1.62964692]
[1769702587238,0.88610804,2821.4,2819.6,1.62964692]
[1769702587535,0.88610804,2821.4,2819.7,0.51762493]
[1769702587766,13.84532096,2821.6,2819.8,0.2335703]
[1769702587943,13.84532096,2821.6,2820.0,0.2335703]
[1769702588148,14.7313659,2821.6,2819.8,0.2335703]
[1769702588349,14.7313659,2821.6,2819.7,0.51762493]
[1769702588551,13.84532096,2821.4,2819.9,0.743]
[1769702589589,13.84532096,2821.4,2820.0,0.88652482]
[1769702589763,14.73141801,2821.4,2820.0,0.88652482]
[1769702590073,13.84532096,2821.4,2820.0,0.88652482]
[1769702590248,0.88601106,2821.7,2820.0,0.88652482]
[1769702590443,0.88601106,2821.7,2820.1,0.51756241]
[1769702590845,13.84532096,2821.9,2820.3,0.2335703]
[1769702591048,14.73112331,2822.3,2820.5,0.03555745]
[1769702591374,13.84532096,2822.3,2820.8,0.03555745]
[1769702591582,0.743,2823.1,2821.0,0.03555745]
[1769702591583,13.84532096,2822.8,2821.0,0.03555745]
[1769702591734,13.84532096,2822.8,2821.1,0.743]
[1769702593557,3.57765838,2823.2,2821.4,0.26912775]
[1769702593558,0.88554143,2823.2,2821.4,0.26912775]
[1769702593758,14.73086239,2823.2,2821.3,0.92167377]
[1769702594078,15.67260443,2823.1,2821.4,0.44661391]
[1769702594645,15.67260443,2823.1,2821.5,0.743]
[1769702594847,13.84532096,2822.9,2821.4,0.44661391]
[1769702595053,13.84532096,2822.9,2821.2,0.88613945]
[1769702595659,13.79532096,2822.7,2821.0,0.88621056]
[1769702596581,13.84532096,2822.3,2820.7,0.88630082]
[1769702596784,13.84532096,2822.3,2820.6,0.88631939]
[1769702596960,0.743,2822.4,2820.7,0.44317741]
[1769702596961,13.84532096,2822.1,2820.7,0.44317741]
[1769702597161,13.84532096,2822.1,2820.8,0.88625957]
[1769702597362,13.84532096,2822.1,2820.9,0.88622029]
[1769702597565,0.88589652,2822.0,2820.8,3.54496791]
[1769702597747,0.88589652,2822.0,2820.8,0.88627339]
[1769702598655,0.88584876,2822.2,2820.9,1.19393588]
[1769702598885,3.54240668,2823.0,2821.5,0.03555745]
[1769702598886,0.88558271,2823.0,2821.5,0.03555745]
[1769702599183,0.88558271,2823.0,2821.4,0.743]
[1769702599184,14.73090367,2823.0,2821.4,0.743]
[1769702599385,14.73090367,2823.0,2821.3,0.743]
[1769702599564,0.88564545,2822.8,2821.4,0.88608492]
[1769702599760,0.88564545,2822.8,2821.4,0.92164237]
[1769702600371,0.88564545,2822.8,2821.4,0.88608492]
[1769702600697,14.73096641,2822.8,2821.4,0.88608492]
[1769702600985,14.73096641,2822.8,2821.1,3.54461962]
[1769702601287,13.84532096,2822.6,2820.9,1.15837843]
[1769702601451,13.84532096,2822.4,2820.9,1.15837843]
[1769702601654,13.84532096,2821.8,2820.1,0.51756241]
[1769702601849,0.13795745,2821.9,2819.8,0.88857928]
[1769702601850,13.84532096,2821.4,2819.8,0.88857928]
[1769702602094,13.84532096,2821.4,2819.8,0.002]
[1769702602486,13.84532096,2821.4,2820.1,0.88647664]
[1769702602812,13.84532096,2821.4,2820.0,0.8865069]
[1769702603106,13.84532096,2821.0,2819.8,0.002]
[1769702603429,14.58832096,2821.0,2819.8,0.002]
[1769702603565,0.88624197,2820.9,2819.8,0.002]
[1769702604371,14.73156293,2820.9,2819.8,0.002]
[1769702605202,13.84532096,2820.9,2819.8,0.002]
[1769702605563,0.88627339,2820.8,2819.8,0.002]
[1769702605765,15.34443663,2820.8,2819.8,0.002]
[1769702607011,15.34443663,2820.8,2819.5,0.002]
[1769702607200,12.94626125,2820.5,2818.6,0.88694356]
[1769702607523,12.94626125,2820.3,2818.5,0.88699542]
[1769702607687,12.94626125,2820.3,2818.3,3.54823732]
[1769702607688,12.9107038,2820.1,2818.0,0.03555745]
[1769702607889,12.9107038,2819.9,2818.0,0.03555745]
[1769702609737,13.7972915,2819.8,2818.1,0.88712252]
[1769702610415,14.5402915,2819.8,2817.9,0.88716642]
[1769702610620,14.5402915,2819.8,2817.9,0.88716933]
[1769702610819,12.9107038,2819.6,2817.8,1.63021477]
[1769702611023,12.9107038,2819.4,2817.9,0.88716366]
[1769702611196,12.9107038,2819.4,2817.8,1.63021651]
[1769702611396,12.9107038,2819.4,2817.8,1.63019427]
[1769702611600,12.9107038,2819.4,2818.0,0.88715069]
[1769702611791,0.88674493,2819.3,2817.9,0.88717007]
[1769702611987,15.38814665,2819.2,2817.9,0.5181013]
[1769702612815,14.64514665,2819.2,2817.9,0.5181013]
[1769702613123,0.88662006,2819.7,2818.3,0.03555745]
[1769702613814,0.88655626,2819.9,2818.3,0.88705957]
[1769702614014,14.40412379,2819.9,2818.3,0.88705957]
[1769702614204,14.40412379,2819.9,2818.2,0.88707344]
[1769702614407,13.51756753,2819.7,2818.3,0.44354694]
[1769702615322,13.51756753,2819.7,2818.5,0.002]
[1769702615920,13.51756753,2819.5,2818.5,0.002]
[1769702616118,13.51756753,2819.5,2818.3,0.002]
[1769702616119,14.26056753,2819.5,2818.3,0.002]
[1769702617513,13.51756753,2819.5,2818.6,0.03555745]
[1769702617715,15.31264958,2819.5,2818.3,0.002]
[1769702617922,14.40428101,2819.4,2818.3,0.002]
[1769702618100,13.51756753,2819.2,2817.7,0.002]
[1769702620634,0.88680784,2819.1,2817.7,0.002]
[1769702621137,14.40437537,2819.1,2817.7,0.002]
[1769702621339,1.79516068,2819.0,2817.7,0.002]
[1769702621541,1.79508205,2819.5,2817.8,0.03555745]
[1769702621833,1.79508205,2819.5,2817.7,0.002]
[1769702621834,0.88673257,2819.4,2817.7,0.03755745]
[1769702622032,1.79508205,2819.5,2818.1,0.03555745]
[1769702622205,0.88668548,2819.5,2818.2,0.03555745]
[1769702622409,1.62957273,2819.9,2818.4,0.03555745]
[1769702622606,0.743,2819.9,2818.7,0.88693369]
[1769702622804,17.80603819,2820.6,2818.8,0.03555745]
[1769702623134,1.07022522,2820.8,2819.4,0.03555745]
[1769702623337,0.18392857,2820.8,2819.6,0.03555745]
[1769702623538,1.07118547,2821.4,2820.0,0.03555745]
[1769702623723,0.88716057,2821.2,2819.8,0.03555745]
[1769702624038,0.88716057,2821.2,2820.2,0.03555745]
[1769702624039,0.001,2821.2,2820.2,0.03555745]
[1769702624204,0.88594631,2821.9,2820.4,0.03555745]
[1769702624405,2.75495802,2821.9,2820.4,0.03555745]
[1769702624749,2.75495802,2821.9,2820.2,0.88646195]
[1769702624935,2.75495802,2821.9,2820.5,0.03555745]
[1769702626016,2.75495802,2821.9,2820.3,0.03555745]
[1769702626457,0.88594631,2821.9,2820.3,0.03555745]
[1769702626608,14.40351384,2821.9,2819.8,3.5462614]
[1769702626805,14.40351384,2821.9,2819.8,3.58181885]
[1769702626806,15.14651384,2821.9,2819.8,3.58181885]
[1769702627045,15.14651384,2821.9,2819.9,0.03555745]
[1769702627256,15.38657924,2821.8,2820.0,0.39373934]
[1769702627422,0.001,2821.7,2820.0,0.39373934]
[1769702627624,0.001,2821.7,2820.0,0.35818189]
[1769702628301,13.51856753,2821.7,2820.0,0.35818189]
[1769702628528,13.51856753,2821.7,2819.8,0.8865877]
[1769702628733,14.40358964,2821.6,2819.7,3.5463508]
[1769702628984,14.40358964,2821.6,2819.9,0.03555745]
[1769702629175,14.40358964,2821.6,2820.3,0.03555745]
[1769702629176,0.88602211,2821.6,2820.3,0.03555745]
[1769702629338,0.88602211,2821.6,2820.1,0.03555745]
[1769702629539,1.32912381,2821.6,2820.2,0.03555745]
[1769702629762,0.4431017,2821.6,2820.2,0.03555745]
[1769702630171,3.54386913,2821.8,2820.2,0.03555745]
[1769702630172,0.88579136,2822.4,2820.7,0.2335703]
[1769702630333,0.18502863,2822.5,2821.0,0.03555745]
[1769702630334,1.07079101,2822.5,2821.0,0.03555745]
[1769702630535,0.18502863,2822.5,2821.2,0.03555745]
[1769702630848,0.88555134,2823.1,2821.6,0.03555745]
[1769702631042,1.81303409,2823.0,2821.6,0.03555745]
[1769702631364,1.81303409,2823.0,2821.5,0.88605351]
[1769702631562,1.81303409,2823.0,2821.6,0.03555745]
[1769702631746,1.81303409,2823.0,2821.5,0.88605351]
[1769702631940,1.81303409,2823.0,2821.6,0.03555745]
[1769702632164,1.81303409,2823.0,2821.6,14.53555745]
[1769702632368,0.88555134,2823.1,2821.7,1.5421611]
[1769702632571,14.40311887,2823.1,2821.7,1.5421611]
[1769702632762,14.40311887,2823.1,2821.6,0.03555745]
[1769702633064,0.88555134,2823.1,2821.4,18.07977152]
[1769702633272,0.88555134,2823.1,2821.6,0.03555745]
[1769702633492,14.40311887,2823.1,2821.4,14.5]
[1769702634966,14.40311887,2823.1,2821.5,0.88605351]
[1769702635167,1.79452898,2823.0,2821.6,1.89302676]
[1769702635375,14.40311887,2823.1,2821.7,0.26912775]
[1769702635376,13.51756753,2823.1,2821.7,0.26912775]
[1769702635579,0.88551071,2823.3,2821.9,0.03555745]
[1769702636172,14.85816877,2823.3,2821.8,0.743]
[1769702636379,0.44273583,2823.2,2821.8,0.743]
[1769702636578,14.85816392,2823.3,2821.8,0.743]
[1769702637072,14.85816392,2823.3,2821.9,0.88592792]
[1769702637647,14.85816392,2823.3,2821.9,0.92148537]
[1769702637866,0.88550586,2823.3,2821.9,0.92148537]
[1769702638066,0.88550586,2823.3,2822.0,0.2335703]
[1769702638272,0.88550586,2823.3,2822.1,0.03555745]
[1769702638776,13.97265806,2823.2,2821.9,0.88592792]
[1769702638950,0.88555134,2823.1,2822.2,0.88583374]
[1769702639157,0.88655134,2823.1,2822.2,0.88583374]
[1769702639680,0.88655134,2823.1,2821.2,0.03555745]
[1769702639681,14.8592094,2823.1,2821.2,0.03555745]
[1769702639843,14.8592094,2823.1,2822.1,0.88586214]
[1769702640045,1.84013375,2823.0,2822.1,0.88586214]
[1769702640500,1.84013375,2823.0,2822.1,0.88584706]
[1769702640675,0.88655134,2823.1,2822.1,0.88584706]
[1769702641000,0.001,2823.1,2822.0,3.54357096]
[1769702641162,0.001,2823.1,2822.1,0.03555745]
[1769702641345,3.72619684,2824.0,2822.4,0.03555745]
[1769702641539,1.07027153,2824.0,2822.6,0.03555745]
[1769702641790,1.07027153,2824.0,2822.5,0.742]
[1769702641791,15.6004266,2824.0,2822.5,0.742]
[1769702641968,15.6004266,2824.0,2822.5,15.242]
[1769702642174,0.74249402,2824.0,2822.5,15.242]
[1769702642346,0.18499701,2824.0,2822.6,0.03555745]
[1769702642543,0.88504081,2824.8,2823.2,0.03555745]
[1769702642788,14.71465806,2825.0,2823.5,0.03555745]
[1769702642789,13.97265806,2825.0,2823.5,0.03555745]
[1769702643077,3.53934188,2825.4,2824.0,0.88526912]
[1769702643241,3.53934188,2825.4,2824.1,0.44263456]
[1769702643443,0.88483046,2825.4,2824.1,0.44263456]
[1769702644060,13.97265806,2825.5,2824.1,0.44263456]
[1769702644260,14.85745905,2825.5,2824.1,0.47819201]
[1769702644442,14.85745905,2825.5,2824.1,0.44263456]
[1769702644644,0.35057068,2826.0,2824.3,0.03555745]
[1769702644843,0.35057068,2826.0,2824.1,0.47819201]
[1769702644844,1.23523148,2826.0,2824.4,0.03555745]
[1769702645039,1.23523148,2826.0,2824.2,0.88520643]
[1769702645040,14.85736327,2825.8,2824.2,0.88520643]
[1769702645480,14.85736327,2825.8,2824.3,0.03555745]
[1769702646046,13.97265806,2825.8,2824.5,0.03555745]
[1769702646367,13.97265806,2825.8,2824.3,0.03555745]
[1769702646551,13.97265806,2825.8,2824.3,0.742]
[1769702646744,2.75933907,2825.9,2824.3,1.34217987]
[1769702646944,0.88469308,2825.9,2824.6,0.03555745]
[1769702647145,14.85728029,2826.1,2824.9,0.03555745]
[1769702647380,0.88462223,2826.1,2825.0,0.03555745]
[1769702647579,0.88462223,2826.1,2824.9,0.03555745]
[1769702647874,0.88462223,2826.1,2824.7,0.92060718]
[1769702648078,0.44230354,2826.0,2824.8,0.44608061]
[1769702648856,14.4149616,2826.0,2824.5,0.742]
[1769702649176,14.4149616,2826.0,2824.4,0.88513872]
[1769702649177,13.97265806,2825.8,2824.1,0.44263456]
[1769702649484,13.97265806,2825.8,2824.2,0.88517997]
[1769702649653,13.97265806,2825.8,2824.1,0.8852173]
[1769702649860,13.97265806,2825.8,2824.0,0.88526196]
[1769702650176,13.97265806,2825.6,2823.7,0.88536079]
[1769702650377,13.97265806,2825.4,2823.9,0.88528093]
[1769702650682,13.97265806,2825.4,2824.5,0.88509884]
[1769702650847,1.39726581,2825.5,2824.5,0.88509884]
[1769702651048,14.85833196,2825.9,2824.5,0.88509884]
[1769702651390,14.85833196,2825.9,2824.2,0.88518384]
[1769702651678,14.85833196,2825.9,2824.1,0.88523716]
[1769702651989,13.97265806,2825.5,2822.4,8.60374962]
[1769702652189,13.97265806,2825.0,2823.1,0.88553272]
[1769702652421,13.97265806,2825.0,2823.2,0.88551385]
[1769702652688,13.97265806,2825.0,2822.8,0.03555745]
[1769702652846,13.97265806,2825.0,2823.5,0.8854239]
[1769702653050,13.97265806,2824.8,2823.9,0.88527778]
[1769702653250,0.8848931,2825.2,2824.0,0.03555745]
[1769702653649,0.8848931,2825.2,2823.9,0.88530047]
[1769702653848,14.85753828,2825.3,2824.0,0.03555745]
[1769702654082,0.88488022,2825.3,2824.0,0.03555745]
[1769702654861,1.32730391,2825.3,2823.9,0.88530047]
[1769702655081,0.88488022,2825.3,2824.0,0.03555745]
[1769702655285,13.97265806,2825.5,2823.9,0.88530047]
[1769702655683,0.001,2825.9,2824.2,0.03555745]
[1769702655848,0.8856739,2825.9,2824.5,0.03555745]
[1769702656054,13.97265806,2825.8,2824.5,14.5]
[1769702656962,13.97265806,2825.8,2824.2,0.742]
[1769702657271,13.97265806,2825.6,2824.2,0.742]
[1769702657474,13.97265806,2825.2,2823.4,3.5417963]
[1769702657659,13.97265806,2825.2,2823.7,0.88535918]
[1769702657854,13.97265806,2825.0,2823.9,0.88529309]
[1769702658182,13.97265806,2825.0,2824.0,3.79]
[1769702658365,13.97265806,2825.0,2823.5,3.79]
[1769702658685,13.97265806,2825.0,2823.7,0.8853602]
[1769702659055,13.97265806,2825.0,2823.6,3.54156966]
[1769702659289,0.88498707,2824.9,2823.8,0.88530974]
[1769702660078,0.88498707,2824.9,2823.7,1.61849685]
[1769702660477,14.85764513,2824.9,2823.6,3.79]
[1769702660866,13.97265806,2824.7,2823.1,0.88554511]
[1769702661061,13.97265806,2824.7,2822.6,0.742]
[1769702661257,0.88508107,2824.6,2821.7,3.54390503]
[1769702661489,13.97265806,2824.3,2822.0,0.88589652]
[1769702661690,13.97265806,2824.1,2822.1,0.44294826]
[1769702661853,13.97265806,2823.9,2822.1,0.44294826]
[1769702662368,0.03555745,2823.8,2821.9,1.62791288]
[1769702662575,13.97265806,2823.7,2821.9,1.62791288]
[1769702663191,13.97265806,2823.7,2821.9,0.88591288]
[1769702663390,13.97265806,2823.7,2822.4,0.002]
[1769702663593,13.97265806,2823.5,2822.4,0.002]
[1769702663906,0.88539453,2823.6,2821.7,0.8859867]
[1769702663907,13.97265806,2823.3,2821.7,0.8859867]
[1769702665402,13.97265806,2823.3,2821.7,0.88598933]
[1769702665560,13.08691631,2823.1,2821.6,3.54397733]
[1769702665961,13.08691631,2823.1,2821.6,0.88602211]
[1769702666165,13.08691631,2823.1,2821.4,1.62806741]
[1769702666367,13.08691631,2822.9,2821.5,2.49885486]
[1769702666574,13.08691631,2822.9,2821.1,0.88615745]
[1769702666776,13.08691631,2822.9,2820.2,3.54580415]
[1769702666777,13.12247376,2822.7,2820.2,3.54580415]
[1769702667069,13.08691631,2822.4,2820.7,0.88630084]